Cogmind - Beta 15 @@@ ROGUE MODE // 2025.05.24 @ 17:09:27 Player: Epsilon 11 Result: Destroyed by TG-JJR(R) with Subdweller Machine Gun Performance ------------- Evolutions (0) 0 Regions Visited (2) 400 Robots Destroyed (6) 30 Value Destroyed (103) 103 Prototype IDs (0) 0 Alien Tech Used (0) 0 Bonus (0) 0 TOTAL SCORE: 533 Bonus ------- None Cogmind --------- Core Integrity 0/250 Matter 147/300 Energy 100/100 System Corruption 0% Temperature Cool (0) Movement Core (2350) Ox46 Location -10/Subcaves Parts ------- > --- POWER (1) -------- (None) > --- PROPULSION (2) --- (None) > --- UTILITY (2) ------ Cargo Storage Unit > --- WEAPON (2) ------- (None) > --- INVENTORY (30) --- Light Ion Engine Light Ion Engine Light Treads Light Treads Small Storage Unit Propulsion Shielding Medium Laser Assault Rifle Assault Rifle Mining Laser Hammer Mining Claw Peak State ------------ > --- POWER ------------ Ion Engine > --- PROPULSION ------- Wheel Wheel > --- UTILITY ---------- Cargo Storage Unit > --- WEAPON ----------- Assault Rifle Assault Rifle > --- INVENTORY -------- Light Ion Engine Light Ion Engine Light Treads Light Treads Small Storage Unit Propulsion Shielding Medium Laser Mining Laser Hammer Mining Claw [Rating: 8] Favorites ----------- Power Ion Engine Engine Ion Engine Propulsion Wheel Wheel Wheel Utility Small Storage Unit Storage Small Storage Unit Protection Propulsion Shielding Weapon Assault Rifle Energy Gun Medium Laser Energy Cannon Beam Cannon Ballistic Gun Assault Rifle Special Weapon Mining Laser Build | -11 -10 -10 ------- Run | Yrd Mat Sub Slots Evolved . | . . . Power . | . . . Propulsion . | . . . Utility . | . . . Weapon . | . . . Parts Attached 13 | 6 5 2 Power 2 | 1 1 . Engine 2 | 1 1 . Core . | . . . Reactor . | . . . Propulsion 2 | 2 . . Treads . | . . . Leg . | . . . Wheel 2 | 2 . . Hover . | . . . Flight . | . . . Utility 3 | 1 2 . Device . | . . . Storage 2 | 1 1 . Processor . | . . . Hackware . | . . . Protection 1 | . 1 . Artifact . | . . . Weapon 6 | 2 2 2 Energy Gun 1 | 1 . . Energy Cannon 2 | . . 2 Ballistic Gun 2 | 1 1 . Ballistic Cannon . | . . . Launcher . | . . . Special Weapon 1 | . 1 . Impact Weapon . | . . . Slashing Weapon . | . . . Piercing Weapon . | . . . Special Melee Weapon . | . . . Unidentified Prototypes . | . . . Parts Lost 5 | . . 5 Power 1 | . . 1 Propulsion 2 | . . 2 Utility . | . . . Weapon 2 | . . 2 Highest Loss Streak 5 | . . 5 To Critical Strikes . | . . . Average Backups 6 | 1 6 12 Power 1 | . 1 2 Propulsion 1 | . 1 2 Utility . | . . 2 Weapon 2 | . 2 6 Tool/Special . | . . . Unused Backups 5 | . . 5 Power 1 | . . 1 Propulsion 2 | . . 2 Utility . | . . . Weapon 2 | . . 2 Tool/Special . | . . . Average Slot Usage (%) 92 | . 96 67 Engine 13 | . 14 9 Wheel 26 | . 28 18 Storage 14 | . 14 14 Protection 9 | . 10 . Energy Gun 4 | . 4 . Energy Cannon 1 | . . 11 Ballistic Gun 21 | . 22 12 Peak Build Rating 8 | 6 8 8 Average Rating 6 | 4 7 6 On Entrance 4 | . 6 8 Naked Turns . | . . . Heaviest Build 151 | 12 149 151 Greatest Support 20 | 20 20 20 Greatest Overweight (x) 48 | . 7 48 Average Overweight (x) 1 | . 1 9 Largest Inventory Capacity 30 | 8 30 30 Average Capacity 14 | 7 12 30 Most Carried 12 | 2 12 12 Average Carried 6 | . 6 12 Final Capacity 30 | 8 30 30 Final Carried 12 | 2 12 12 Class Distribution -------------------- 69% | Mutant 30% | Hauler-Mutant Dominant Class ---------------- Mutant | -10/Materials Hauler-Mutant | -10/Subcaves Resources | -11 -10 -10 ----------- Run | Yrd Mat Sub Matter Collected 282 | 178 104 . Remotely . | . . . Salvage Created 152 | . 152 . Parts 15 | . 15 . Haulers Intercepted . | . . . Recyclers Shooed . | . . . Parts Field Recycled . | . . . Retrieved Matter . | . . . Parts Self-Destructed . | . . . Prevented . | . . . Kills | -11 -10 -10 ------- Run | Yrd Mat Sub Combat Hostiles Destroyed 5 | . 5 . Guns 5 | . 5 . Classes Destroyed 3 | . 3 . Builder 1 | . 1 . Swarmer 3 | . 3 . Grunt 2 | . 2 . Best Kill Streak 3 | . 3 . Combat Bots Only 3 | . 3 . Max Kills in Single Turn 1 | . 1 . Gunslinging . | . . . Exploded . | . . . Melee . | . . . Uniques/NPCs Destroyed . | . . . Combat | -11 -10 -10 -------- Run | Yrd Mat Sub Hostile Shots Fired 56 | . 26 30 Missed 6 | . 4 2 Hits 50 | . 22 28 Projectile 50 | . 22 28 Critical Strikes 1 | . . 1 Damage Taken 816 | . 219 597 Core 250 | . 74 176 Absorbed by Shields . | . . . Redirected to Shielding 3 | . 3 . Core Remaining (%) 100 | 100 . . Volleys Fired 36 | . 25 11 Largest 2 | . 2 2 Hottest 120 | . 100 120 Shots Fired 71 | . 49 22 Gun 48 | . 48 . Cannon 22 | . . 22 Launcher . | . . . Special 1 | . 1 . Kinetic 40 | . 40 . Thermal 31 | . 9 22 Explosive . | . . . Electromagnetic . | . . . Robot Hit Streak 17 | . 6 17 Robot Miss Streak 5 | . 5 1 Penetration Max . | . . . Secondary Targets 1 | . 1 . Max Gunslinging Chain 1 | . 1 . Shots Hit Robots 48 | . 28 20 Core Hits 9 | . 9 . Critical Kills . | . . . Critical Parts Destroyed . | . . . Critical Strikes 2 | . 2 . Burn 2 | . 2 . Melee Attacks . | . . . Impact . | . . . Slashing . | . . . Piercing . | . . . Sneak Attacks . | . . . Combat Hostiles . | . . . Follow-up Attacks . | . . . Damage Inflicted 398 | . 398 . Guns 398 | . 398 . Cannons . | . . . Explosions . | . . . Melee . | . . . Ramming . | . . . Kinetic 348 | . 348 . Thermal 50 | . 50 . Explosive . | . . . Electromagnetic . | . . . Impact . | . . . Slashing . | . . . Piercing . | . . . Highest Corruption . | . . . Average Corruption . | . . . Corruption Purged . | . . . Corruption Blocked . | . . . Overload Shots . | . . . Overflow Damage . | . . . Projectiles . | . . . Explosions . | . . . Melee . | . . . Knockbacks . | . . . Impact . | . . . Kinetic . | . . . Secondary . | . . . Self-Inflicted Damage . | . . . Shots . | . . . Rammed . | . . . Targets Rammed . | . . . Kicked . | . . . Crushed . | . . . Highest Temperature 54 | . 54 . Average Temperature 19 | . 19 . Received Heat Transfer 90 | . 90 . Siege Activations . | . . . Martial Activations . | . . . Shielding Activations . | . . . Robots Disrupted . | . . . Combat Hostiles . | . . . Robots Corrupted . | . . . Combat Hostiles . | . . . Parts Fried . | . . . Impact Corruptions . | . . . Robots Melted . | . . . Combat Hostiles . | . . . Parts Melted 3 | . 3 . Heat Transferred 296 | . 296 . Parts Sabotaged . | . . . Parts Stolen . | . . . Parts Stripped . | . . . Power Chain Reactions . | . . . Alert | -11 -10 -10 ------- Run | Yrd Mat Sub Maximum Alert Level . | . . . Low Security (%) 100 | 100 100 . Level 1 . | . . . Level 2 . | . . . Level 3 . | . . . Level 4 . | . . . Level 5 . | . . . High Security . | . . . Max Security . | . . . Peak Influence 62 | . 62 . Initial . | . . . Average 12 | . 12 . Influence Increases 194 | . 194 . Destroy 0b10 Robot/C 100 | . 100 . Destroy 0b10 Robot/NC 5 | . 5 . Destroy Leader 20 | . 20 . Successful Hack 8 | . 8 . Destroy Structure 1 | . 1 . Lose Combat Pursuer 60 | . 60 . Influence Decreases 194 | . 194 . Time Decay 194 | . 194 . Squads Dispatched 3 | . 3 . Investigation 2 | . 2 . Extermination . | . . . Reinforcement 1 | . 1 . Assault . | . . . Garrison . | . . . Intercept . | . . . Searches Triggered . | . . . Construction Impeded . | . . . Haulers Reinforced . | . . . Active Scanning Responses . | . . . Cargo Convoy Interrupts . | . . . Stealth | -11 -10 -10 --------- Run | Yrd Mat Sub Distress Signals 1 | . 1 . Communications Jammed . | . . . Distress Signals . | . . . Times Spotted 16 | . 15 1 Peak Tracking Total 3 | . 3 1 Tactical Retreats 2 | . 2 . Traps | -11 -10 -10 ------- Run | Yrd Mat Sub Traps Triggered 1 | . 1 . Indirectly . | . . . Trap Hack Attempts . | . . . Triggered . | . . . Disarmed . | . . . Reprogrammed . | . . . Reused . | . . . Traps Extracted . | . . . Installed . | . . . Triggered . | . . . Machines | -11 -10 -10 ---------- Run | Yrd Mat Sub Machines Disabled . | . . . Max in Single Turn . | . . . Machines Repaired . | . . . Machines Dismantled . | . . . Machines Sabotaged . | . . . Overloaded Fab Kills . | . . . Hacking | -11 -10 -10 --------- Run | Yrd Mat Sub Machines Accessed 5 | . 5 . Terminals 4 | . 4 . Fabricators . | . . . Repair Stations . | . . . Recycling Units 1 | . 1 . Scanalyzers . | . . . Garrison Access . | . . . Total Hacks 12 | . 12 . Successful 5 | . 5 . Failed 7 | . 7 . Catastrophic 1 | . 1 . Database Lockouts . | . . . Manual 10 | . 10 . Terminals 11 | . 11 . Fabricators . | . . . Repair Stations . | . . . Recycling Units 1 | . 1 . Scanalyzers . | . . . Garrison Access . | . . . Terminal Hacks 1 | . 1 . Terminal Index 1 | . 1 . Fabricator Hacks . | . . . Repair Station Hacks . | . . . Recycling Unit Hacks 1 | . 1 . Report Inventory 1 | . 1 . Scanalyzer . | . . . Garrison Access Hacks . | . . . Unauthorized Hacks 3 | . 3 . Terminals 3 | . 3 . Skim 3 | . 3 . Fabricators . | . . . Repair Stations . | . . . Recycling Units . | . . . Scanalyzers . | . . . Garrison Access . | . . . Data Cores Recovered . | . . . Used . | . . . Hacking Detections 4 | . 4 . Full Trace Events 2 | . 2 . Feedback Events . | . . . Feedback Blocked . | . . . Robot Schematics Acquired . | . . . Robots Built . | . . . Authchips . | . . . Time . | . . . Total Robot Build Rating . | . . . Part Schematics Acquired . | . . . Parts Built . | . . . Authchips . | . . . Time . | . . . Total Part Build Rating . | . . . Parts Repaired . | . . . Time . | . . . Parts Recycled . | . . . Recycled Matter . | . . . Retrieved Matter . | . . . Retrieved Components . | . . . Parts Scanalyzed . | . . . Part Schematics Acquired . | . . . Parts Damaged . | . . . Bothacking | -11 -10 -10 ------------ Run | Yrd Mat Sub Used RIF Installer . | . . . Robots Hacked . | . . . Non-combat . | . . . Combat . | . . . Robot Hacks Applied . | . . . Relay Couplers Released . | . . . Fabnet Peak Effective % . | . . . Robots Rewired . | . . . Allies Hacked . | . . . Hacks Repelled . | . . . Allies | -11 -10 -10 -------- Run | Yrd Mat Sub Total Allies . | . . . Largest Group . | . . . Highest-Rated Group . | . . . Highest-Rated Ally . | . . . Total Orders . | . . . Ally Attacks . | . . . Total Damage . | . . . Kills . | . . . Allies Corrupted . | . . . Allies Melted . | . . . Intel | -11 -10 -10 ------- Run | Yrd Mat Sub Active Infowar (turns) . | . . . Robot Analysis Total . | . . . Derelict Logs Recovered 1 | . . 1 Drone Launches . | . . . Drone Recoveries . | . . . Exploration | -11 -10 -10 ------------- Run | Yrd Mat Sub Turns Passed 931 | 46 767 118 Spaces Moved 541 | 45 464 32 Core 3 | 1 . 2 Treads . | . . . Legs . | . . . Wheels 538 | 44 464 30 Hover . | . . . Flight . | . . . Fastest Speed 50 | 50 80 185 Average Speed 108 | 79 96 323 Slowest Speed 2450 | 80 185 2450 Overloaded Moves . | . . . Propulsion Burnouts . | . . . Robots Hopped . | . . . Potential Cave-ins . | . . . Cave-ins Triggered . | . . . Exploration Rate (%) 25 | 4 68 3 Regions Visited 2 Branch Regions 1 Pre-discovered Areas . | . . . Known Exits Taken . | . . . Unknown Exits Taken 2 | 1 1 . Scrap Searched . | . . . Spaces Dug 1 | . 1 . Terrain Destroyed 1 | . 1 . Melee . | . . . Projectile 1 | . 1 . AOE . | . . . Terrain Rammed . | . . . Walls Destroyed . | . . . Machines Disabled . | . . . Actions | -11 -10 -10 --------- Run | Yrd Mat Sub Total 829 | 52 732 45 Wait 225 | . 225 . Move 539 | 44 463 32 Hop . | . . . Pick Up 12 | 2 10 . Fast Attach 9 | 6 3 . Attach . | . . . Detach . | . . . Swap 5 | . 3 2 Drop 3 | . 3 . Fire 36 | . 25 11 Melee . | . . . Ram . | . . . Kick . | . . . Crush . | . . . Escape Stasis . | . . . Rewire . | . . . Trap . | . . . Miscellaneous . | . . . Route ------- -11/Scrapyard -10/Materials (discovered 4 exits: [*Mat x2] / [*Min] / [*Sub]) -10/Subcaves History --------- Turn | Location | Event 19 | -11/Scrapyard | Discovered new exit (range 15) 47 | -11/Scrapyard | Entered Materials 123 | -10/Materials | Discovered new exit (range 9) 172 | -10/Materials | Discovered new exit (range 15) 230 | -10/Materials | Discovered new exit (range 8) 315 | -10/Materials | Build established: Mutant 603 | -10/Materials | Discovered new exit (range 8) 814 | -10/Materials | Entered Subcaves 815 | -10/Subcaves | Approached by a straggling Scientist 818 | -10/Subcaves | Learned 8 Materials zone layouts 909 | -10/Subcaves | Core integrity fell below 50% 929 | -10/Subcaves | Core integrity fell below 20% 932 | -10/Subcaves | Destroyed by TG-JJR(R) with Subdweller Machine Gun Last Messages --------------- 00741_ Acquired Hammer. 00744_ Acquired Beam Cannon. 00757_ Acquired 18 matter. 00761_ Acquired 19 matter. LOCATION=UNKNOWN AMBIENT_HEAT=-10 GOAL=ESCAPE 00815_ AW-7C2(c): "Thank the algorithms! I was beginning to lose hope I'd never make it past all the Subs lurking out here." 00818_ AW-7C2(c): "Hey, let me tag along and I can get us both out of this nasty situation. At least I think I can... The group I got separated from was talking about a shortcut back to the UFD." 00818_ Acquired derelict log, extracted data. Data stored: Materials zone layouts (x8). AW-7C2(c): "I think it's somewhere east of here" 00882_ Wheel destroyed. 00892_ Ion Engine destroyed. 00914_ Beam Cannon destroyed. AW-7C2(c): "I think it's somewhere east of here" 00924_ Beam Cannon destroyed. Map ----- +----------------------------------------------------+ | ??????????????????????????????????????????? | | ??????????????????????????????????????????? | | ??????????????????????????????????????????? | | ??????????????????????????????????????????? | | ??????????????????????????????????????????? | | ????????????????#####?????????????????????? | | ???????????????## #?????????????????????? | | ???????????????# ##?????????????????????? | | ??????????????## ##?????????????????????? | | ??????????????# #?????????????????????? | | ??????????????### #?????????????????????? | | ???????????????## #?????????????????????? | | ???????????????# #?????????????????????? | | ???????????????# #?????????????????????? | | ??????????????## ##?????????????????????? | | ??????????????# #??????????????????????? | | ??????????????# #??????????????????????? | | ??????????????# ##?????????????????????? | | ??????????????## ##????????????????????? | | ??????????????## #????????????????????? | | ??????????????# #????????????????????? | | ??????????????#### ##????????????????????? | | ????????????????## c #????????????????????? | | ????????????????# ##????????????????????? | | ????????????????# #? #?????????????????? | | ????????????????##@ # ##????????????????? | | ???????????????## #????????????????? | | ???????????????# #???????????????? | | ???????????????#R #??????????????? | | ?????????????? #????????????? | | ?????????????"##< ??????????? | | ????????????$?? # # ??????????? | | ???????????#??## ##? #???????????? | | ???????????????# ??????????????? | | ???????????????# ????????????? | | ???????????????# #????????????? | | ???????????????# ####????????????? | | ???????????????### # ##???????????????? | | ?????????????????? #####????????????????? | | ?????????????????? #?????????????????????? | | ?????????????????? ?????????????????????? | | ?????????????????? #?????????????????????? | | ?????????????????? ??????????????????????? | | ??????????????????????????????????????????? | | ??????????????????????????????????????????? | | ??????????????????????????????????????????? | | ??????????????????????????????????????????? | | ??????????????????????????????????????????? | | ??????????????????????????????????????????? | | ??????????????????????????????????????????? | +----------------------------------------------------+ Best States ------------- Heat Dissipation 25 Energy Generation 10 Energy Capacity 250 Matter Stores 218 Matter Capacity 300 Sight Range 16 Terrain Scan Density 10 Propulsion Shielding 33 Evasion (%) 44 Item Schematics ----------------- None Robot Schematics ------------------ None Fabricated ------------ Nothing Repaired ---------- Nothing Alien Tech Used ----------------- None Achievements -------------- None Challenges ------------ None Game ------ Seed ArmoredJammingStorm Manual? 0 Play Time 00:06:46 Cumulative 301.8 hours Start 2025.05.24 @ 17:03:22 End 2025.05.24 @ 17:09:27 Sessions 1 Manual Loads 0 Difficulty Rogue Special Mode None Game No. 142 Rogue 99 Adventurer 43 Explorer 0 Win Type - Total 6 Types 4/0/1/0/0/0/0/1/0/0 Lore% 82 Gallery% 71 Achievement% 65 Wizard Run 0 Options --------- Layout 0 ASCII 0 Keyboard 0 Movement Numpad Keybinds 0 Fullscreen 1 Font 24/Smallcaps Map View 76x50 Zoom Use 0% Tactical HUD 1 Map Filters NONE Filters NONE Steam 1 RUN: af895f5c-517e-468a-a2d9-61b210703d9e